fUST/lending_fUST_20251231
["ID","MTS","AMOUNT","RATE_DAILY","PERIOD"]
[400142880,1767150638612,-3374.67480924,0.00011779,2]
[400142881,1767150638623,-1200.0,0.00011898,2]
[400142882,1767150638636,-5000.0,0.00011899,2]
[400142883,1767150638646,-588.0,0.00011899,2]
[400142884,1767150638655,-300.0,0.00012018,2]
[400142885,1767150638666,-79875.32257223,0.00012019,2]
[400142886,1767150638676,-1009.81045584,0.00012025,2]
[400142887,1767150638686,-184.66452009,0.00012118,2]
[400142888,1767150638695,-50000.0,0.00012119,2]
[400142889,1767150638706,-151.0,0.00012119,2]
[400142890,1767150638716,-151.0,0.00012119,2]
[400142891,1767150638726,-151.0,0.00012119,2]
[400142892,1767150638735,-151.0,0.00012119,2]
[400142893,1767150638745,-184.01414135,0.00012119,2]
[400142894,1767150638754,-151.0,0.00012119,2]
[400142895,1767150638764,-151.0,0.00012119,2]
[400142896,1767150638774,-151.0,0.00012119,2]
[400142897,1767150638783,-151.0,0.00012119,2]
[400142898,1767150638794,-151.0,0.00012119,2]
[400142899,1767150638804,-151.0,0.00012119,2]
[400142900,1767150638813,-151.0,0.00012119,2]
[400142901,1767150638823,-151.0,0.00012119,2]
[400142902,1767150638832,-151.0,0.00012119,2]
[400142903,1767150638841,-151.0,0.00012119,2]
[400142904,1767150638851,-151.0,0.00012119,2]
[400142905,1767150638860,-151.0,0.00012119,2]
[400142906,1767150638870,-151.0,0.00012119,2]
[400142907,1767150638880,-151.0,0.00012119,2]
[400142908,1767150638889,-151.0,0.00012119,2]
[400142909,1767150638899,-151.0,0.00012119,2]
[400142910,1767150638909,-242.32257062,0.00012119,2]
[400142911,1767150638919,-1000.0,0.00012127,2]
[400142912,1767150638929,-1000.0,0.00012127,2]
[400142913,1767150638940,-1000.0,0.00012127,2]
[400142914,1767150638950,-1000.0,0.00012127,2]
[400142915,1767150638960,-1000.0,0.00012127,2]
[400142916,1767150638971,-1000.0,0.00012127,2]
[400142917,1767150638981,-1000.0,0.00012127,2]
[400142918,1767150638991,-1000.0,0.00012127,2]
[400142919,1767150639001,-1000.0,0.00012127,2]
[400142920,1767150639010,-1003.4854603,0.00012127,2]
[400142921,1767150639020,-876.97,0.00012329,2]
[400142922,1767150639030,-730.81,0.00012329,2]
[400142923,1767150639040,-609.01,0.00012329,2]
[400142924,1767150639050,-507.51,0.00012329,2]
[400142925,1767150639059,-422.92,0.00012329,2]
[400142926,1767150639069,-352.44,0.00012329,2]
[400142927,1767150639231,-500.0,0.00012368,2]
[400142928,1767150639241,-300.0,0.00012368,2]
[400142929,1767150639250,-300.0,0.00012368,2]
[400142930,1767150639261,-300.0,0.00012368,2]
[400142931,1767150639270,-300.0,0.00012368,2]
[400142932,1767150639280,-300.0,0.00012368,2]
[400142933,1767150639290,-300.0,0.00012368,2]
[400142934,1767150639300,-300.0,0.00012368,2]
[400142935,1767150639309,-300.0,0.00012368,2]
[400142936,1767150639319,-300.0,0.00012368,2]
[400142937,1767150639328,-300.0,0.00012368,2]
[400142938,1767150639337,-300.0,0.00012368,2]
[400142939,1767150639347,-300.0,0.00012368,2]
[400142940,1767150639356,-300.0,0.00012368,2]
[400142941,1767150639365,-300.0,0.00012368,2]
[400142942,1767150639375,-300.0,0.00012368,2]
[400142943,1767150639385,-600.0,0.00012368,2]
[400142944,1767150639395,-330.05685762,0.00012629,2]
[400142945,1767150639404,-594.10234372,0.00012629,2]
[400142946,1767150639414,-2376.40937487,0.00012629,2]
[400142947,1767150639424,-500.0,0.00012642,2]
[400142948,1767150639433,-469.11986355,0.00012863,2]
[400142949,1767150639442,-1049.81,0.00012872,2]
[400142950,1767150639452,-500.0,0.00012916,2]
[400142951,1767150639461,-1680.0,0.00013088,2]
[400142952,1767150639471,-431.50554577,0.00013164,2]
[400142953,1767150639480,-776.70998238,0.00013164,2]
[400142954,1767150639490,-1380.81774646,0.00013164,2]
[400142955,1767150639501,-2157.52772885,0.00013164,2]
[400142956,1767150639510,-3106.83992954,0.00013164,2]
[400142957,1767150639520,-4228.75434854,0.00013164,2]
[400142958,1767150639530,-296.19409471,0.0001319,2]
[400142959,1767150639539,-420.0,0.00013193,2]
[400142960,1767150639548,-1270.91,0.00013229,2]
[400142961,1767150639558,-500.0,0.00013273,2]
[400142962,1767150639567,-500.0,0.00013273,2]
[400142963,1767150639577,-500.0,0.00013273,2]
[400142964,1767150639586,-500.0,0.00013273,2]
[400142965,1767150639595,-520.05984388,0.00013273,2]
[400142966,1767150639605,-500.0,0.00013273,2]
[400142967,1767150639615,-529.84736886,0.00013273,2]
[400142968,1767150639624,-500.0,0.00013273,2]
[400142969,1767150639637,-500.0,0.00013273,2]
[400142970,1767150639647,-500.0,0.00013273,2]
[400142971,1767150639656,-500.0,0.00013273,2]
[400142972,1767150639665,-500.0,0.00013273,2]
[400142973,1767150639676,-500.0,0.00013273,2]
[400142974,1767150639685,-500.0,0.00013273,2]
[400142975,1767150639695,-167.36910648,0.00013273,2]
[400142976,1767150639706,-500.0,0.00013273,2]
[400142977,1767150639715,-500.0,0.00013273,2]
[400142978,1767150639725,-500.0,0.00013273,2]
[400142979,1767150639734,-500.0,0.00013273,2]
[400142980,1767150639743,-500.0,0.00013273,2]
[400142981,1767150639752,-501.03935192,0.00013273,2]
[400142982,1767150639761,-500.0,0.00013273,2]
[400142983,1767150639771,-500.0,0.00013273,2]
[400142984,1767150639781,-500.0,0.00013273,2]
[400142985,1767150639790,-500.0,0.00013273,2]
[400142986,1767150639800,-500.0,0.00013273,2]
[400142987,1767150639809,-502.50925578,0.00013273,2]
[400142988,1767150639818,-500.0,0.00013273,2]
[400142989,1767150639827,-500.0,0.00013273,2]
[400142990,1767150639837,-500.0,0.00013273,2]
[400142991,1767150639847,-500.0,0.00013273,2]
[400142992,1767150639856,-500.0,0.00013273,2]
[400142993,1767150639865,-500.0,0.00013273,2]
[400142994,1767150639875,-500.0,0.00013273,2]
[400142995,1767150639884,-500.0,0.00013273,2]
[400142996,1767150639895,-500.0,0.00013273,2]
[400142997,1767150639905,-459.90209075,0.00013273,2]
[400142998,1767150639915,-500.0,0.00013273,2]
[400142999,1767150639924,-205.30476225,0.00013273,2]
[400143000,1767150639934,-500.0,0.00013273,2]
[400143001,1767150639943,-500.0,0.00013273,2]
[400143002,1767150639954,-499.96763801,0.00013273,2]
[400143003,1767150639963,-500.0,0.00013273,2]
[400143004,1767150639972,-500.0,0.00013273,2]
[400143005,1767150639982,-500.0,0.00013273,2]
[400143006,1767150639991,-500.0,0.00013273,2]
[400143007,1767150640001,-500.0,0.00013273,2]
[400143008,1767150640010,-500.0,0.00013273,2]
[400143009,1767150640019,-500.0,0.00013273,2]
[400143010,1767150640029,-500.0,0.00013273,2]
[400143011,1767150640038,-500.0,0.00013273,2]
[400143012,1767150640047,-500.0,0.00013273,2]
[400143013,1767150640057,-500.0,0.00013273,2]
[400143014,1767150640066,-500.0,0.00013273,2]
[400143015,1767150640076,-494.0031485,0.00013273,2]
[400143016,1767150640085,-500.0,0.00013273,2]
[400143018,1767150640094,-151.0,0.000134,2]
[400143019,1767150640104,-10085.20274253,0.0001354,2]
[400143020,1767150640113,-1262.39169598,0.00013599,2]
[400143021,1767150640122,-4864.0,0.000136,2]
[400143022,1767150640131,-720.0,0.00013605,2]
[400143023,1767150640140,-300.0,0.00013673,2]
[400143024,1767150640149,-1378.99,0.00013698,2]
[400143025,1767150640158,-1378.99,0.00013698,2]
[400143026,1767150640168,-1378.99,0.00013698,2]
[400143027,1767150640177,-1378.99,0.00013698,2]
[400143028,1767150640187,-1378.99,0.00013698,2]
[400143029,1767150640196,-1378.99,0.00013698,2]
[400143030,1767150640206,-1378.99,0.00013698,2]
[400143031,1767150640215,-1378.99,0.00013698,2]
[400143032,1767150640225,-1378.99,0.00013698,2]
[400143033,1767150640234,-1378.99,0.00013698,2]
[400143034,1767150640243,-1378.99,0.00013698,2]
[400143035,1767150640253,-1378.99,0.00013698,2]
[400143036,1767150640262,-1378.99,0.00013698,2]
[400143037,1767150640271,-1378.99,0.00013698,2]
[400143038,1767150640280,-1378.99,0.00013698,2]
[400143039,1767150640289,-1378.99,0.00013698,2]
[400143040,1767150640299,-1378.99,0.00013698,2]
[400143041,1767150640309,-1378.99,0.00013698,2]
[400143042,1767150640319,-1378.99,0.00013698,2]
[400143043,1767150640328,-1378.99,0.00013698,2]
[400143044,1767150640337,-1378.99,0.00013698,2]
[400143045,1767150640347,-1378.99,0.00013698,2]
[400143047,1767150640357,-1378.99,0.00013698,2]
[400143048,1767150640366,-1379.11148784,0.00013698,2]
[400143049,1767150640376,-1018.51,0.00013698,2]
[400143050,1767150640385,-1018.51,0.00013698,2]
[400143051,1767150640395,-1018.51,0.00013698,2]
[400143052,1767150640404,-1018.51,0.00013698,2]
[400143053,1767150640414,-1018.51,0.00013698,2]
[400143054,1767150640423,-1018.51,0.00013698,2]
[400143055,1767150640432,-1018.51,0.00013698,2]
[400143056,1767150640441,-1018.51,0.00013698,2]
[400143057,1767150640451,-1018.51,0.00013698,2]
[400143058,1767150640461,-1018.51,0.00013698,2]
[400143060,1767150640470,-1018.51,0.00013698,2]
[400143062,1767150640479,-1018.51,0.00013698,2]
[400143064,1767150640488,-1018.51,0.00013698,2]
[400143065,1767150640497,-1018.51,0.00013698,2]
[400143066,1767150640507,-1018.51,0.00013698,2]
[400143068,1767150640516,-1018.51,0.00013698,2]
[400143069,1767150640525,-1018.51,0.00013698,2]
[400143071,1767150640535,-1018.51,0.00013698,2]
[400143072,1767150640544,-1018.51,0.00013698,2]
[400143073,1767150640553,-1018.51,0.00013698,2]
[400143074,1767150640563,-1018.51,0.00013698,2]
[400143075,1767150640573,-1018.51,0.00013698,2]
[400143076,1767150640582,-1018.51,0.00013698,2]
[400143077,1767150640591,-1018.63991961,0.00013698,2]
[400143078,1767150640601,-500.0,0.00013698,2]
[400143079,1767150640610,-262.16767073,0.00013698,2]
[400143080,1767150640619,-1000.0,0.00013699,2]
[400143081,1767150640632,-47132.8324059,0.00013699,2]
[400143082,1767150640643,-565.555714,0.00013699,2]
[400143083,1767150640652,-500.0,0.00013699,2]
[400143084,1767150640662,-500.0,0.00013699,2]
[400143085,1767150640671,-500.0,0.00013699,2]
[400143086,1767150640682,-500.0,0.00013699,2]
[400143087,1767150640691,-500.0,0.00013699,2]
[400143088,1767150640701,-500.0,0.00013699,2]
[400143089,1767150640711,-500.0,0.00013699,2]
[400143090,1767150640721,-500.0,0.00013699,2]
[400143091,1767150640730,-346.46150426,0.00013699,2]
[400143092,1767150640740,-500.0,0.00013699,2]
[400143093,1767150640749,-500.0,0.00013699,2]
[400143094,1767150640759,-510.7161434,0.00013699,2]
[400143095,1767150640768,-500.0,0.00013699,2]
[400143096,1767150640777,-500.0,0.00013699,2]
[400143097,1767150640786,-500.0,0.00013699,2]
[400143098,1767150640795,-165.03764715,0.00013699,2]
[400143099,1767150640804,-500.0,0.00013699,2]
[400143100,1767150640814,-500.0,0.00013699,2]
[400143101,1767150640823,-500.0,0.00013699,2]
[400143102,1767150640832,-500.0,0.00013699,2]
[400143104,1767150640841,-500.0,0.00013699,2]
[400143105,1767150640850,-500.0,0.00013699,2]
[400143106,1767150640859,-500.0,0.00013699,2]
[400143107,1767150640868,-500.0,0.00013699,2]
[400143108,1767150640878,-500.0,0.00013699,2]
[400143109,1767150640887,-500.0,0.00013699,2]
[400143110,1767150640896,-158.39206841,0.00013699,2]
[400143111,1767150640905,-500.0,0.00013699,2]
[400143112,1767150640915,-500.0,0.00013699,2]
[400143113,1767150640925,-500.0,0.00013699,2]
[400143114,1767150640934,-500.0,0.00013699,2]
[400143115,1767150640943,-500.0,0.00013699,2]
[400143116,1767150640952,-500.0,0.00013699,2]
[400143117,1767150640962,-150.35034149,0.00013699,2]
[400143118,1767150640971,-500.0,0.00013699,2]
[400143119,1767150640981,-500.0,0.00013699,2]
[400143120,1767150640990,-500.0,0.00013699,2]
[400143121,1767150640999,-500.0,0.00013699,2]
[400143122,1767150641008,-500.0,0.00013699,2]
[400143123,1767150641018,-500.0,0.00013699,2]
[400143125,1767150641028,-500.0,0.00013699,2]
[400143126,1767150641037,-500.0,0.00013699,2]
[400143127,1767150641047,-501.4710254,0.00013699,2]
[400143128,1767150641056,-500.0,0.00013699,2]
[400143129,1767150641066,-303.93264249,0.00013699,2]
[400143130,1767150641076,-500.0,0.00013699,2]
[400143131,1767150641086,-159.68059141,0.00013699,2]
[400143132,1767150641096,-500.0,0.00013699,2]
[400143133,1767150641105,-500.0,0.00013699,2]
[400143134,1767150641115,-500.0,0.00013699,2]
[400143135,1767150641125,-441.0753747,0.00013699,2]
[400143136,1767150641135,-500.0,0.00013699,2]
[400143137,1767150641144,-500.0,0.00013699,2]
[400143138,1767150641154,-500.0,0.00013699,2]
[400143139,1767150641164,-254.02465024,0.00013699,2]
[400143140,1767150641173,-500.0,0.00013699,2]
[400143141,1767150641182,-500.0,0.00013699,2]
[400143142,1767150641192,-500.0,0.00013699,2]
[400143143,1767150641201,-500.0,0.00013699,2]
[400143144,1767150641210,-178.08460977,0.00013699,2]
[400143145,1767150641220,-158.10807846,0.00013699,2]
[400143146,1767150641229,-500.0,0.00013699,2]
[400143147,1767150641239,-500.0,0.00013699,2]
[400143148,1767150641247,-366.01001326,0.00013699,2]
[400143149,1767150641257,-500.0,0.00013699,2]
[400143150,1767150641266,-500.0,0.00013699,2]
[400143151,1767150641276,-500.0,0.00013699,2]
[400143152,1767150641285,-500.0,0.00013699,2]
[400143153,1767150641294,-500.0,0.00013699,2]
[400143154,1767150641303,-500.0,0.00013699,2]
[400143155,1767150641313,-500.48900482,0.00013699,2]
[400143156,1767150641322,-344.71637908,0.00013699,2]
[400143157,1767150641331,-500.0,0.00013699,2]
[400143158,1767150641340,-500.0,0.00013699,2]
[400143159,1767150641349,-500.0,0.00013699,2]
[400143160,1767150641359,-500.0,0.00013699,2]
[400143161,1767150641368,-525.82485317,0.00013699,2]
[400143162,1767150641377,-307.59957655,0.00013699,2]
[400143163,1767150641386,-500.0,0.00013699,2]
[400143164,1767150641396,-163.65866633,0.00013699,2]
[400143165,1767150641405,-500.0,0.00013699,2]
[400143166,1767150641415,-267.53598313,0.00013699,2]
[400143167,1767150641424,-500.0,0.00013699,2]
[400143168,1767150641433,-500.0,0.00013699,2]
[400143169,1767150641443,-500.0,0.00013699,2]
[400143170,1767150641452,-500.0,0.00013699,2]
[400143171,1767150641461,-500.0,0.00013699,2]
[400143172,1767150641471,-500.0,0.00013699,2]
[400143173,1767150641481,-500.0,0.00013699,2]
[400143174,1767150641491,-500.0,0.00013699,2]
[400143175,1767150641500,-500.0,0.00013699,2]
[400143176,1767150641509,-213.3181846,0.00013699,2]
[400143177,1767150641519,-500.0,0.00013699,2]
[400143178,1767150641528,-500.0,0.00013699,2]
[400143179,1767150641537,-500.0,0.00013699,2]
[400143180,1767150641547,-500.0,0.00013699,2]
[400143181,1767150641556,-500.0,0.00013699,2]
[400143182,1767150641565,-500.0,0.00013699,2]
[400143183,1767150641574,-500.0,0.00013699,2]
[400143184,1767150641583,-1000.0,0.00013821,2]
[400143185,1767150641593,-177.12142034,0.00013821,2]
[400143186,1767150641602,-1000.0,0.00013821,2]
[400143187,1767150641611,-831.59541923,0.00013821,2]
[400143188,1767150641620,-1000.0,0.00013821,2]
[400143189,1767150641630,-1000.0,0.00013821,2]
[400143190,1767150641642,-1000.0,0.00013821,2]
[400143191,1767150641652,-352.87208667,0.00013821,2]
[400143192,1767150641661,-381.16221649,0.00013821,2]
[400143193,1767150641670,-1044.63270575,0.00013821,2]
[400143194,1767150641682,-1000.0,0.00013821,2]
[400143195,1767150641691,-1000.0,0.00013821,2]
[400143196,1767150641700,-424.3864781,0.00013821,2]
[400143197,1767150641711,-1000.0,0.00013821,2]
[400143198,1767150641720,-1001.81918671,0.00013821,2]
[400143199,1767150641729,-160.63497667,0.00013821,2]
[400143200,1767150641739,-992.23358821,0.00013821,2]
[400143201,1767150641748,-1000.0,0.00013821,2]
[400143202,1767150641758,-1000.0,0.00013821,2]
[400143203,1767150641767,-1109.08385745,0.00013821,2]
[400143204,1767150641776,-1000.0,0.00013821,2]
[400143205,1767150641785,-1000.0,0.00013821,2]
[400143206,1767150641795,-1000.0,0.00013821,2]
[400143207,1767150641805,-1000.0,0.00013821,2]
[400143208,1767150641815,-805.16629448,0.00013821,2]
[400143209,1767150641824,-1000.0,0.00013821,2]
[400143210,1767150641834,-1000.0,0.00013821,2]
[400143211,1767150641843,-1000.0,0.00013821,2]
[400143212,1767150641852,-1000.0,0.00013821,2]
[400143213,1767150641862,-1000.0,0.00013821,2]
[400143214,1767150641871,-1000.0,0.00013821,2]
[400143215,1767150641880,-1000.0,0.00013821,2]
[400143216,1767150641889,-1000.0,0.00013821,2]
[400143217,1767150641898,-1000.0,0.00013821,2]
[400143218,1767150641907,-1000.0,0.00013821,2]
[400143219,1767150641916,-1000.0,0.00013821,2]
[400143220,1767150641925,-1000.0,0.00013821,2]
[400143221,1767150641935,-1000.0,0.00013821,2]
[400143222,1767150641944,-1000.0,0.00013821,2]
[400143223,1767150641953,-1000.0,0.00013821,2]
[400143224,1767150641963,-1000.0,0.00013821,2]
[400143225,1767150641972,-1000.0,0.00013821,2]
[400143226,1767150641982,-1102.47879957,0.00013821,2]
[400143227,1767150641991,-1000.0,0.00013821,2]
[400143228,1767150642000,-1000.0,0.00013821,2]
[400143229,1767150642010,-686.16786472,0.00013821,2]
[400143230,1767150642019,-1000.0,0.00013821,2]
[400143231,1767150642029,-378.35903762,0.00013857,2]
[400143232,1767150642039,-432.41032871,0.00013857,2]
[400143233,1767150642048,-1182.62181526,0.00013946,2]
[400143234,1767150642058,-163.51788502,0.00013973,2]
[400143235,1767150642067,-289.4332812,0.00014019,2]
[400143236,1767150642077,-2099.62,0.00014043,2]
[400143237,1767150642086,-600.0,0.00014221,2]
[400143238,1767150642096,-1000.0,0.00014247,2]
[400143239,1767150642106,-1000.0,0.00014247,2]
[400143240,1767150642115,-1000.0,0.00014247,2]
[400143241,1767150642125,-251.84601956,0.00014247,2]
[400143242,1767150642134,-433.15519118,0.00014247,2]
[400143243,1767150642144,-908.24491784,0.00014247,2]
[400143244,1767150642153,-1000.0,0.00014247,2]
[400143245,1767150642163,-1000.0,0.00014247,2]
[400143246,1767150642172,-1000.0,0.00014247,2]
[400143247,1767150642182,-500.48099046,0.00014247,2]
[400143248,1767150642191,-1000.0,0.00014247,2]
[400143249,1767150642200,-1000.0,0.00014247,2]
[400143250,1767150642210,-1000.0,0.00014247,2]
[400143251,1767150642219,-1000.0,0.00014247,2]
[400143252,1767150642229,-1000.0,0.00014247,2]
[400143253,1767150642238,-1000.0,0.00014247,2]
[400143254,1767150642248,-1000.0,0.00014247,2]
[400143255,1767150642258,-1000.0,0.00014247,2]
[400143256,1767150642267,-1000.0,0.00014247,2]
[400143257,1767150642277,-1000.0,0.00014247,2]
[400143258,1767150642286,-1000.0,0.00014247,2]
[400143259,1767150642295,-1000.0,0.00014247,2]
[400143260,1767150642306,-1000.0,0.00014247,2]
[400143261,1767150642315,-1000.0,0.00014247,2]
[400143262,1767150642325,-1000.75482131,0.00014247,2]
[400143263,1767150642334,-1000.0,0.00014247,2]
[400143264,1767150642344,-1000.0,0.00014247,2]
[400143265,1767150642353,-1000.0,0.00014247,2]
[400143266,1767150642362,-1000.0,0.00014247,2]
[400143267,1767150642372,-1000.0,0.00014247,2]
[400143268,1767150642381,-911.90264951,0.00014247,2]
[400143269,1767150642391,-1000.0,0.00014247,2]
[400143270,1767150642400,-1000.0,0.00014247,2]
[400143271,1767150642409,-1000.0,0.00014247,2]
[400143272,1767150642419,-537.58100831,0.00014247,2]
[400143273,1767150642429,-609.17214565,0.00014247,2]
[400143274,1767150642440,-1000.0,0.00014247,2]
[400143275,1767150642449,-1000.0,0.00014247,2]
[400143276,1767150642459,-1000.0,0.00014247,2]
[400143277,1767150642469,-500.4478313,0.00014247,2]
[400143278,1767150642478,-1000.0,0.00014247,2]
[400143279,1767150642487,-1000.0,0.00014247,2]
[400143280,1767150642497,-1000.0,0.00014247,2]
[400143281,1767150642507,-1000.0,0.00014247,2]
[400143282,1767150642516,-1000.0,0.00014247,2]
[400143283,1767150642526,-1000.0,0.00014247,2]
[400143284,1767150642535,-1000.0,0.00014247,2]
[400143285,1767150642650,-1000.0,0.00014247,2]
[400143286,1767150642677,-1000.0,0.00014247,2]
[400143287,1767150642687,-1000.0,0.00014247,2]
[400143288,1767150642696,-1000.0,0.00014247,2]
[400143289,1767150642707,-1000.0,0.00014247,2]
[400143290,1767150642716,-439.97362328,0.00014247,2]
[400143291,1767150642725,-1000.0,0.00014247,2]
[400143292,1767150642735,-1000.0,0.00014247,2]
[400143293,1767150642744,-500.68443154,0.00014247,2]
[400143294,1767150642752,-1000.0,0.00014247,2]
[400143295,1767150642762,-1000.0,0.00014247,2]
[400143296,1767150642772,-1000.0,0.00014247,2]
[400143297,1767150642782,-1000.0,0.00014247,2]
[400143298,1767150642791,-1141.36512345,0.00014247,2]
[400143299,1767150642801,-842.07137515,0.00014247,2]
[400143300,1767150642810,-1000.0,0.00014247,2]
[400143301,1767150642820,-1000.0,0.00014247,2]
[400143302,1767150642830,-1000.0,0.00014247,2]
[400143303,1767150642839,-1000.0,0.00014247,2]
[400143304,1767150642848,-1000.0,0.00014247,2]
[400143305,1767150642857,-1000.0,0.00014247,2]
[400143306,1767150642867,-1000.0,0.00014247,2]
[400143307,1767150642875,-1000.0,0.00014247,2]
[400143308,1767150642884,-968.9954371,0.00014368,2]
[400143309,1767150642894,-1500.0,0.00014368,2]
[400143310,1767150642903,-1500.0,0.00014368,2]
[400143311,1767150642912,-1500.0,0.00014368,2]
[400143312,1767150642922,-1500.0,0.00014368,2]
[400143313,1767150642931,-1500.0,0.00014368,2]
[400143314,1767150642941,-1347.05017991,0.00014368,2]
[400143315,1767150642950,-1464.3277621,0.00014368,2]
[400143316,1767150642959,-1500.0,0.00014368,2]
[400143317,1767150642969,-683.82350415,0.00014368,2]
[400143318,1767150642979,-1500.0,0.00014368,2]
[400143319,1767150642988,-928.87629639,0.00014368,2]
[400143320,1767150642997,-1500.0,0.00014368,2]
[400143321,1767150643007,-1500.0,0.00014368,2]
[400143322,1767150643016,-1531.8224898,0.00014368,2]
[400143323,1767150643026,-1153.38490748,0.00014368,2]
[400143324,1767150643035,-1500.0,0.00014368,2]
[400143325,1767150643044,-1500.0,0.00014368,2]
[400143326,1767150643053,-1500.0,0.00014368,2]
[400143327,1767150643063,-1500.0,0.00014368,2]
[400143328,1767150643073,-1324.83546284,0.00014368,2]
[400143329,1767150643082,-1500.0,0.00014368,2]
[400143330,1767150643091,-1500.0,0.00014368,2]
[400143331,1767150643101,-1500.0,0.00014368,2]
[400143332,1767150643110,-349.3977641,0.00014368,2]
[400143333,1767150643119,-1160.40400037,0.00014368,2]
[400143334,1767150643128,-1500.0,0.00014368,2]
[400143335,1767150643137,-750.79014339,0.00014368,2]
[400143336,1767150643147,-1500.0,0.00014368,2]
[400143337,1767150643156,-190.31177109,0.00014368,2]
[400143338,1767150643165,-1500.0,0.00014368,2]
[400143339,1767150643175,-1500.0,0.00014368,2]
[400143340,1767150643184,-1500.0,0.00014368,2]
[400143341,1767150643193,-1500.0,0.00014368,2]
[400143342,1767150643203,-2351.0,0.00014397,2]
[400143343,1767150643212,-587.0,0.00014483,2]
[400143344,1767150643221,-151.0,0.000146,2]
[400143345,1767150643230,-900.0,0.00014768,2]
[400143346,1767150643239,-463.63501052,0.00014795,2]
[400143347,1767150643248,-1500.0,0.00014795,2]
[400143348,1767150643257,-1500.0,0.00014795,2]
[400143349,1767150643267,-524.36073826,0.00014795,2]
[400143350,1767150643276,-1504.00712805,0.00014795,2]
[400143351,1767150643285,-614.96936602,0.00014795,2]
[400143352,1767150643295,-1500.0,0.00014795,2]
[400143353,1767150643304,-1500.0,0.00014795,2]
[400143354,1767150643313,-1502.35610833,0.00014795,2]
[400143355,1767150643322,-1135.05317618,0.00014795,2]
[400143356,1767150643331,-1500.0,0.00014795,2]
[400143357,1767150643341,-1545.39972522,0.00014795,2]
[400143358,1767150643350,-1500.0,0.00014795,2]
[400143359,1767150643359,-1500.0,0.00014795,2]
[400143360,1767150643369,-1001.27910227,0.00014795,2]
[400143361,1767150643378,-370.59484017,0.00014795,2]
[400143362,1767150643387,-181.08073641,0.00014795,2]
[400143363,1767150643396,-1500.0,0.00014795,2]
[400143364,1767150643405,-1078.13053233,0.00014795,2]
[400143365,1767150643415,-1500.0,0.00014795,2]
[400143366,1767150643424,-1425.73894344,0.00014795,2]
[400143367,1767150643433,-1068.53710429,0.00014795,2]
[400143368,1767150643442,-690.10820632,0.00014795,2]
[400143369,1767150643450,-1500.0,0.00014795,2]
[400143370,1767150643460,-1500.0,0.00014795,2]
[400143371,1767150643469,-1500.0,0.00014795,2]
[400143372,1767150643480,-1501.43385257,0.00014795,2]
[400143373,1767150643489,-656.47212183,0.00014795,2]
[400143374,1767150643499,-1500.0,0.00014795,2]
[400143375,1767150643508,-1500.0,0.00014795,2]
[400143376,1767150643518,-1000.66687773,0.00014795,2]
[400143377,1767150643527,-1500.0,0.00014795,2]
[400143378,1767150643536,-1500.0,0.00014795,2]
[400143379,1767150643546,-1500.0,0.00014795,2]
[400143380,1767150643555,-1500.0,0.00014795,2]
[400143381,1767150643564,-1500.0,0.00014795,2]
[400143382,1767150643574,-1500.0,0.00014795,2]
[400143383,1767150643584,-1500.0,0.00014795,2]
[400143384,1767150643594,-1500.0,0.00014795,2]
[400143385,1767150643603,-1633.65989049,0.00014795,2]
[400143386,1767150643612,-1500.0,0.00014795,2]
[400143387,1767150643622,-1500.0,0.00014795,2]
[400143388,1767150643632,-1500.0,0.00014795,2]